Cogmind - Beta 14 @@@ ROGUE MODE // 2024.10.20 @ 21:54:59 Player: Woven Result: Destroyed by YI-UF0 with YI-UF0's Doublenader Performance ------------- Evolutions (0) 0 Regions Visited (2) 400 Robots Destroyed (16) 80 Value Destroyed (413) 413 Prototype IDs (0) 0 Alien Tech Used (0) 0 Bonus (0) 0 TOTAL SCORE: 893 Bonus ------- None Cogmind --------- Core Integrity 0/250 Matter 153/300 Energy 99/100 System Corruption 0% Temperature Cool (0) Movement Core (100) Ox1 Location -10/Mines Parts ------- > --- POWER (1) -------- (None) > --- PROPULSION (2) --- (None) > --- UTILITY (2) ------ Small Storage Unit Structural Scanner > --- WEAPON (2) ------- (None) > --- INVENTORY (8) ---- Ion Engine Huge Storage Unit Shield Generator Light EM Pulse Cannon Assault Rifle Peak State ------------ > --- POWER ------------ Light Nuclear Core > --- PROPULSION ------- Aluminum Leg Aluminum Leg > --- UTILITY ---------- Visual Processing Unit Shield Generator > --- WEAPON ----------- Assault Rifle Grenade Launcher > --- INVENTORY -------- Light Ion Engine EM Pulse Gun Light EM Pulse Cannon Assault Rifle [Rating: 11] Favorites ----------- Power Light Ion Engine Engine Light Ion Engine Power Core Light Nuclear Core Propulsion Aluminum Leg Leg Aluminum Leg Utility Structural Scanner Device Structural Scanner Storage Small Storage Unit Processor Visual Processing Unit Weapon Assault Rifle Energy Gun EM Pulse Gun Ballistic Gun Assault Rifle Launcher Grenade Launcher Build | -11 -10 -10 ------- Run | Yrd Mat Min Slots Evolved . | . . . Power . | . . . Propulsion . | . . . Utility . | . . . Weapon . | . . . Parts Attached 24 | 5 16 3 Power 3 | 1 2 . Engine 2 | 1 1 . Core 1 | . 1 . Reactor . | . . . Propulsion 4 | 2 2 . Treads . | . . . Leg 4 | 2 2 . Wheel . | . . . Hover . | . . . Flight . | . . . Utility 6 | . 6 . Device 3 | . 3 . Storage 2 | . 2 . Processor 1 | . 1 . Hackware . | . . . Protection . | . . . Artifact . | . . . Weapon 11 | 2 6 3 Energy Gun 1 | . 1 . Energy Cannon . | . . . Ballistic Gun 6 | 2 3 1 Ballistic Cannon . | . . . Launcher 4 | . 2 2 Special Weapon . | . . . Impact Weapon . | . . . Slashing Weapon . | . . . Piercing Weapon . | . . . Special Melee Weapon . | . . . Unidentified Prototypes . | . . . Parts Lost 9 | . 4 5 Power 2 | . 1 1 Propulsion 3 | . 2 1 Utility . | . . . Weapon 4 | . 1 3 Highest Loss Streak 5 | . 4 5 To Critical Strikes . | . . . Average Slot Usage (%) 91 | . 92 75 Engine 7 | . 6 11 Core 6 | . 7 . Leg 21 | . 22 11 Device 15 | . 16 14 Storage 7 | . 7 14 Processor 2 | . 3 . Energy Gun 5 | . 6 . Ballistic Gun 19 | . 20 14 Launcher 2 | . 1 9 Peak Build Rating 11 | 5 11 6 Average Rating 7 | 4 8 5 On Entrance 3 | . 5 6 Naked Turns . | . . . Heaviest Build 15 | 7 15 14 Greatest Support 20 | 20 20 10 Greatest Overweight (x) 4 | . 4 1 Average Overweight (x) . | . . 1 Largest Inventory Capacity 25 | 5 25 8 Average Capacity 6 | 5 6 8 Most Carried 6 | 1 6 6 Average Carried 4 | . 4 5 Final Capacity 8 | 5 8 8 Final Carried 5 | 1 5 5 Class Distribution -------------------- 100% | Mutant Dominant Class ---------------- Mutant | -10/Materials Mutant | -10/Mines Resources | -11 -10 -10 ----------- Run | Yrd Mat Min Matter Collected 459 | 268 191 . Remotely . | . . . Salvage Created 453 | 33 420 . Parts 27 | . 27 . Haulers Intercepted . | . . . Recyclers Shooed . | . . . Parts Field Recycled . | . . . Retrieved Matter . | . . . Parts Self-Destructed . | . . . Prevented . | . . . Kills | -11 -10 -10 ------- Run | Yrd Mat Min Combat Hostiles Destroyed 12 | 1 11 . Guns 9 | 1 8 . AOE 3 | . 3 . Classes Destroyed 6 | 1 5 . Worker 1 | . 1 . Builder 1 | . 1 . Recycler 1 | . 1 . Watcher 1 | . 1 . Swarmer 3 | . 3 . Grunt 9 | 1 8 . Best Kill Streak 6 | 1 6 . Combat Bots Only 4 | 1 4 . Max Kills in Single Turn 3 | 1 3 . Gunslinging . | . . . Exploded 2 | . 2 . Melee . | . . . Uniques/NPCs Destroyed . | . . . Combat | -11 -10 -10 -------- Run | Yrd Mat Min Hostile Shots Fired 98 | 4 59 35 Missed 30 | 1 19 10 Damage Taken 1128 | 33 559 536 Core 267 | 11 121 135 Absorbed by Shields 68 | . 68 . Core Remaining (%) 95 | 95 . . Volleys Fired 36 | 3 29 4 Largest 2 | 2 2 2 Hottest 60 | 40 60 50 Shots Fired 69 | 6 58 5 Gun 63 | 6 53 4 Cannon . | . . . Launcher 6 | . 5 1 Special . | . . . Kinetic 51 | 6 41 4 Thermal . | . . . Explosive 6 | . 5 1 Electromagnetic 12 | . 12 . Robot Hit Streak 13 | 5 13 1 Robot Miss Streak 3 | . 3 2 Penetration Max . | . . . Secondary Targets . | . . . Shots Hit Robots 45 | 5 38 2 Core Hits 26 | 1 24 1 Critical Kills . | . . . Critical Parts Destroyed . | . . . Critical Strikes 1 | . 1 . Corrupt 1 | . 1 . Melee Attacks . | . . . Impact . | . . . Slashing . | . . . Piercing . | . . . Sneak Attacks . | . . . Combat Hostiles . | . . . Follow-up Attacks . | . . . Damage Inflicted 894 | 68 803 23 Guns 529 | 68 447 14 Cannons . | . . . Explosions 365 | . 356 9 Melee . | . . . Ramming . | . . . Kinetic 460 | 68 378 14 Thermal 139 | . 139 . Explosive 226 | . 217 9 Electromagnetic 69 | . 69 . Impact . | . . . Slashing . | . . . Piercing . | . . . Highest Corruption . | . . . Average Corruption . | . . . Corruption Purged . | . . . Corruption Blocked . | . . . Overload Shots . | . . . Overflow Damage 13 | . 13 . Projectiles . | . . . Explosions 13 | . 13 . Melee . | . . . Knockbacks . | . . . Impact . | . . . Kinetic . | . . . Secondary . | . . . Self-Inflicted Damage 153 | . 142 11 Shots 5 | . 4 1 Rammed . | . . . Targets Rammed 1 | . 1 . Kicked 1 | . 1 . Crushed . | . . . Highest Temperature 54 | . 54 . Average Temperature 15 | . 15 . Received Heat Transfer 201 | 18 183 . Siege Activations . | . . . Robots Corrupted . | . . . Combat Hostiles . | . . . Parts Fried . | . . . Impact Corruptions . | . . . Robots Melted . | . . . Combat Hostiles . | . . . Parts Melted 1 | . 1 . Heat Transferred 200 | . 200 . Parts Sabotaged . | . . . Parts Stolen . | . . . Parts Stripped . | . . . Power Chain Reactions 1 | . 1 . Alert | -11 -10 -10 ------- Run | Yrd Mat Min Peak Influence 274 | 20 274 62 Initial 60 | . 13 60 Average 102 | 5 124 56 Maximum Alert Level 1 | . 1 . Low Security (%) 98 | 100 98 100 Level 1 1 | . 1 . Level 2 . | . . . Level 3 . | . . . Level 4 . | . . . Level 5 . | . . . High Security . | . . . Max Security . | . . . Squads Dispatched 1 | . 1 . Investigation 1 | . 1 . Extermination . | . . . Reinforcement . | . . . Assault . | . . . Garrison . | . . . Intercept . | . . . Searches Triggered . | . . . Construction Impeded . | . . . Haulers Reinforced . | . . . Active Scanning Responses . | . . . Cargo Convoy Interrupts . | . . . Stealth | -11 -10 -10 --------- Run | Yrd Mat Min Distress Signals 2 | . 2 . Communications Jammed . | . . . Distress Signals . | . . . Times Spotted 24 | 1 19 4 Peak Tracking Total 4 | 1 4 3 Tactical Retreats . | . . . Traps | -11 -10 -10 ------- Run | Yrd Mat Min Traps Triggered 1 | . 1 . Indirectly . | . . . Trap Hack Attempts . | . . . Triggered . | . . . Disarmed . | . . . Reprogrammed . | . . . Reused . | . . . Traps Extracted . | . . . Installed . | . . . Triggered . | . . . Machines | -11 -10 -10 ---------- Run | Yrd Mat Min Machines Disabled 1 | . 1 . Max in Single Turn 1 | . 1 . Machines Repaired . | . . . Machines Dismantled . | . . . Machines Sabotaged . | . . . Overloaded Fab Kills . | . . . Hacking | -11 -10 -10 --------- Run | Yrd Mat Min Machines Accessed 2 | . 2 . Terminals 1 | . 1 . Fabricators . | . . . Repair Stations . | . . . Recycling Units 1 | . 1 . Scanalyzers . | . . . Garrison Access . | . . . Total Hacks 7 | . 7 . Successful 6 | . 6 . Failed 1 | . 1 . Catastrophic . | . . . Database Lockouts . | . . . Manual . | . . . Terminals 6 | . 6 . Fabricators . | . . . Repair Stations . | . . . Recycling Units 1 | . 1 . Scanalyzers . | . . . Garrison Access . | . . . Terminal Hacks 5 | . 5 . Record 3 | . 3 . Alert Level 1 | . 1 . Locate Traps 1 | . 1 . Fabricator Hacks . | . . . Repair Station Hacks . | . . . Recycling Unit Hacks 1 | . 1 . Report Inventory 1 | . 1 . Scanalyzer . | . . . Garrison Access Hacks . | . . . Unauthorized Hacks . | . . . Terminals . | . . . Fabricators . | . . . Repair Stations . | . . . Recycling Units . | . . . Scanalyzers . | . . . Garrison Access . | . . . Data Cores Recovered . | . . . Used . | . . . Hacking Detections 1 | . 1 . Full Trace Events 1 | . 1 . Feedback Events . | . . . Feedback Blocked . | . . . Robot Schematics Acquired . | . . . Robots Built . | . . . Authchips . | . . . Time . | . . . Total Robot Build Rating . | . . . Part Schematics Acquired . | . . . Parts Built . | . . . Authchips . | . . . Time . | . . . Total Part Build Rating . | . . . Parts Repaired . | . . . Time . | . . . Parts Recycled . | . . . Recycled Matter . | . . . Retrieved Matter . | . . . Retrieved Components . | . . . Parts Scanalyzed . | . . . Part Schematics Acquired . | . . . Parts Damaged . | . . . Bothacking | -11 -10 -10 ------------ Run | Yrd Mat Min Used RIF Installer . | . . . Robots Hacked . | . . . Non-combat . | . . . Combat . | . . . Robot Hacks Applied . | . . . Relay Couplers Released . | . . . Fabnet Peak Effective % . | . . . Robots Rewired . | . . . Allies Hacked . | . . . Hacks Repelled . | . . . Allies | -11 -10 -10 -------- Run | Yrd Mat Min Total Allies . | . . . Largest Group . | . . . Highest-Rated Group . | . . . Highest-Rated Ally . | . . . Total Orders . | . . . Ally Attacks . | . . . Total Damage . | . . . Kills . | . . . Allies Corrupted . | . . . Allies Melted . | . . . Intel | -11 -10 -10 ------- Run | Yrd Mat Min Robot Analysis Total . | . . . Derelict Logs Recovered . | . . . Drone Launches . | . . . Drone Recoveries . | . . . Exploration | -11 -10 -10 ------------- Run | Yrd Mat Min Turns Passed 749 | 105 586 58 Spaces Moved 425 | 83 318 24 Core 22 | 17 5 . Treads . | . . . Legs 403 | 66 313 24 Wheels . | . . . Hover . | . . . Flight . | . . . Fastest Speed 50 | 50 120 190 Average Speed 134 | 105 137 190 Slowest Speed 250 | 120 250 190 Overloaded Moves . | . . . Propulsion Burnouts . | . . . Robots Hopped . | . . . Cave-ins Triggered . | . . . Exploration Rate (%) 24 | 7 53 12 Regions Visited 2 Branch Regions 1 Pre-discovered Areas . | . . . Known Exits Taken . | . . . Unknown Exits Taken 2 | 1 1 . Scrap Searched . | . . . Spaces Dug . | . . . Terrain Destroyed 36 | . 31 5 Melee . | . . . Projectile . | . . . AOE 36 | . 31 5 Terrain Rammed . | . . . Walls Destroyed . | . . . Machines Disabled . | . . . Actions | -11 -10 -10 --------- Run | Yrd Mat Min Total 527 | 92 403 32 Wait 27 | . 27 . Move 423 | 82 317 24 Hop . | . . . Pick Up 12 | 2 9 1 Fast Attach 11 | 4 7 . Attach 5 | 1 3 1 Detach . | . . . Swap 8 | . 6 2 Drop 4 | . 4 . Fire 36 | 3 29 4 Melee . | . . . Ram . | . . . Kick 1 | . 1 . Crush . | . . . Escape Stasis . | . . . Rewire . | . . . Trap . | . . . Miscellaneous . | . . . Route ------- -11/Scrapyard -10/Materials -10/Mines History --------- Turn | Location | Event 2 | -11/Scrapyard | Met Revision 17 63 | -11/Scrapyard | Discovered new exit (range 8) 106 | -11/Scrapyard | Entered Materials 314 | -10/Materials | Build established: Mutant 567 | -10/Materials | Lost 4 parts (1p2n1w) 609 | -10/Materials | Discovered new exit (range 16) 645 | -10/Materials | Core integrity fell below 50% 692 | -10/Materials | Entered Mines 693 | -10/Mines | YI-UF0 nonchalantly dropped a Grenade Launcher on the ground 741 | -10/Mines | Core integrity fell below 20% 750 | -10/Mines | Destroyed by YI-UF0 with YI-UF0's Doublenader Last Messages --------------- T-07 Excavator is excavating. LOCATION=UNKNOWN GOAL=ESCAPE A crazy derelict wanders into view. YI-UF0 nonchalantly drops a Grenade Launcher on the ground. Acquired Grenade Launcher. YI-UF0 mumbles something. S-10 Pest destroyed. YI-UF0: "Whaaaaaaaa!" YI-UF0 mumbles something. Grenade Launcher destroyed. The unstable cave ceiling collapses. Lgt. Ion Engine crushed. Lgt. Ion Engine destroyed. Aluminum Leg destroyed. Grenade Launcher destroyed. The unstable cave ceiling collapses. Assault Rifle destroyed. [Achievement: First Step to Greatness] Map ----- +----------------------------------------------------+ | ??????????????????????????????????????????????? | | ??????????????????????????????????????????????? | | ??????????????????????????????????????????????? | | ??????????????????????????????????????????????? | | ??????????????????????????????????????????????? | | ??????????????????????????????????????????????? | | ??????????????????????????????????????????????? | | ??????????????????????????????????????????????? | | ??????????????????????????????????????????????? | | ??????????????????????????????????????????????? | | ?????????????????????????######???????????????? | | ???????????????????????? #######??????????????? | | ???????????????? ##????? ## ###?? ##?????????? | | ???????????????? ##?????## ##?? ##?????????? | | ???????????????? ????### ### ##?????????? | | ?????????????##### ????### ### ##?????????? | | ?????????????##### ????## ##?????????? | | ?????????????## #k ???## ##?????????? | | ?????????????## ##?## #######?????????? | | ?????????????## ###### ########?????????? | | ?????????????### ##### ####??????????????? | | ??????????????## ## # ########?? ##??? | | ?????????????### # ###### ###??? | | ?????????????### ??? | | ?????????????## # $??? | | ?????????????## @ gs ##????? | | ????????????### ###????? | | ???????????### # ##?????? | | ???????????## # # # # ##? ????? | | ???????????## ? # ## ########???? ???? | | ?????????## ?? ## #############???????????? | | ?????????## ????### ########?????????????????? | | ?????????###?????## ##???????????????????????? | | ?????????????????## ?????????????????????????? | | ?????????????????## ?????????????????????????? | | ?????????????????## ??????????????????????????? | | ?????????????????## ??????????????????????????? | | ?????????????????## ??????????????????????????? | | ?????????????????## ??????????????????????????? | | ?????????????????## ??????????????????????????? | | ?????????????????# ??????????????????????????? | | ??????????????????????????????????????????????? | | ??????????????????????????????????????????????? | | ??????????????????????????????????????????????? | | ??????????????????????????????????????????????? | | ??????????????????????????????????????????????? | | ??????????????????????????????????????????????? | | ??????????????????????????????????????????????? | | ??????????????????????????????????????????????? | | ??????????????????????????????????????????????? | +----------------------------------------------------+ Best States ------------- Heat Dissipation 25 Energy Generation 14 Energy Capacity 160 Matter Stores 300 Matter Capacity 300 Sight Range 18 Terrain Scan Density 10 Evasion (%) 55 Item Schematics ----------------- None Robot Schematics ------------------ None Fabricated ------------ Nothing Alien Tech Used ----------------- None Achievements -------------- Crack Shot First Step to Greatness One Hack Too Far Challenges ------------ None Game ------ Seed MinesnifferCentriumNanovents Manual? 0 Play Time 00:22:39 Cumulative 0.3 hours Start 2024.10.20 @ 21:32:57 End 2024.10.20 @ 21:54:59 Sessions 1 Manual Loads 0 Difficulty Rogue Special Mode None Game No. 1 Rogue 1 Adventurer 0 Explorer 0 Win Type - Total 0 Types 0/0/0/0/0/0/0/0/0 Lore% 0 Gallery% 1 Achievement% 1 Wizard Run 0 Options --------- Layout 1 ASCII 0 Keyboard 0 Movement Arrows Keybinds 0 Fullscreen 1 Font 24/Smallcaps Map View 50x35 Zoom Use 0% Tactical HUD 0 Map Filters NONE Filters NONE Steam 1 RUN: 5b01f34b-f39c-4d5f-87db-f16fdaf1b538